fUSD/lending_fUSD_20260129
["ID","MTS","AMOUNT","RATE_DAILY","PERIOD"]
[403911607,1769664643533,-869.29579289,0.00017857,2]
[403911609,1769664643542,-5718.48024011,0.000179,2]
[403911611,1769664643554,-680.76275655,0.000179,2]
[403911618,1769664643605,-1450.46517221,0.000179,2]
[403911619,1769664643632,-438.87694885,0.000179,2]
[403911623,1769664643749,-858.47980339,0.000179,2]
[403912198,1769665267383,2232.05,0.00014015,2]
[403912209,1769665645122,-1000.0,0.000158,2]
[403912210,1769665645144,-1000.0,0.00016,2]
[403912211,1769665645163,-392.74,0.000162,2]
[403912212,1769665645181,-216.93470814,0.000162,2]
[403912213,1769665645203,-6.89674015,0.00016272,2]
[403912214,1769665647072,-198.70694014,0.00016272,2]
[403912215,1769665647092,-183.0408,0.00016273,2]
[403912216,1769665647113,-1200.0,0.00016372,2]
[403912217,1769665647135,-191.0,0.00016372,2]
[403912218,1769665647154,-500.0,0.00016373,2]
[403912219,1769665647173,-173.59196904,0.00016373,2]
[403912220,1769665647194,-500.0,0.00016373,2]
[403912221,1769665647215,-500.0,0.00016373,2]
[403912222,1769665647236,-500.0,0.00016373,2]
[403912223,1769665647255,-156.18849675,0.00016373,2]
[403912224,1769665647276,-539.90934846,0.00016373,2]
[403912225,1769665647297,-503.09870012,0.00016373,2]
[403912226,1769665647316,-500.0,0.00016373,2]
[403912227,1769665647335,-500.0,0.00016373,2]
[403912228,1769665647353,-160.19813377,0.00016373,2]
[403912229,1769665647374,-501.50416209,0.00016373,2]
[403912230,1769665647405,-500.31115882,0.00016373,2]
[403912231,1769665647438,-500.0,0.00016373,2]
[403912232,1769665647456,-500.62094132,0.00016373,2]
[403912233,1769665647475,-504.68661395,0.00016373,2]
[403912234,1769665647495,-1600.0,0.00016656,2]
[403912235,1769665647514,-2802.2,0.00016697,2]
[403912236,1769665647536,-165.22,0.00016712,2]
[403912237,1769665647554,-2423.7,0.00016808,2]
[403912238,1769665647573,-409.0,0.00016847,2]
[403912239,1769665647591,-184.53570572,0.0001687,2]
[403912240,1769665755472,-151.0,0.00016085,2]
[403912241,1769665781453,151.0,0.00016093,2]
[403912242,1769665797825,151.0,0.00016093,2]
[403912243,1769665814183,151.0,0.00016091,2]
[403912244,1769665831139,151.0,0.00016092,2]
[403912246,1769665832263,-500.0,0.00016373,2]
[403912247,1769665832273,-433.24858238,0.00016373,2]
[403912248,1769665832284,-500.0,0.00016373,2]
[403912249,1769665832294,-843.87878387,0.00016584,2]
[403912250,1769665832306,-1614.4797699,0.00016584,2]
[403912251,1769665832354,-163.73003751,0.00016584,2]
[403912252,1769665832364,-150.0,0.00016761,2]
[403912253,1769665832374,-15.46429428,0.0001687,2]
[403912254,1769665832393,-227.11,0.0001688,2]
[403912255,1769665832405,-386.0,0.0001692,2]
[403912256,1769665832415,-1000.0,0.00016921,2]
[403912257,1769665832424,-9999.99,0.00016921,2]
[403912258,1769665832435,-500.0,0.00016921,2]
[403912259,1769665832446,-5304.6,0.00016976,2]
[403912260,1769665832457,-250.0,0.00017,2]
[403912261,1769665832467,-200.0,0.00017001,2]
[403912262,1769665832477,-212.0,0.00017047,2]
[403912263,1769665832487,-1255.66,0.00017099,2]
[403912264,1769665832497,-174.61919141,0.00017099,2]
[403912265,1769665832507,-250.0,0.00017099,2]
[403912266,1769665832518,-250.0,0.00017099,2]
[403912268,1769665832528,-250.0,0.00017099,2]
[403912270,1769665832538,-500.0,0.00017099,2]
[403912271,1769665832548,-500.0,0.00017099,2]
[403912272,1769665832558,-500.0,0.00017099,2]
[403912273,1769665832568,-500.0,0.00017099,2]
[403912274,1769665832579,-500.0,0.00017099,2]
[403912276,1769665832588,-500.0,0.00017099,2]
[403912278,1769665832599,-500.0,0.00017099,2]
[403912281,1769665832608,-854.2589148,0.00017099,2]
[403912283,1769665832618,-500.0,0.00017099,2]
[403912285,1769665832627,-322.6107,0.00017099,2]
[403912287,1769665832637,-500.0,0.00017099,2]
[403912289,1769665832648,-500.0,0.00017099,2]
[403912291,1769665832657,-500.0,0.00017099,2]
[403912293,1769665832666,-500.0,0.00017099,2]
[403912295,1769665832676,-250.0,0.00017099,2]
[403912297,1769665832686,-209.40437684,0.00017099,2]
[403912299,1769665832695,-500.0,0.00017099,2]
[403912301,1769665832705,-169.49,0.00017108,2]
[403912303,1769665832715,-217.15233878,0.00017154,2]
[403912306,1769665832725,-1485.77428245,0.00017188,2]
[403912308,1769665832735,-1015.0,0.0001719,2]
[403912310,1769665832749,-225.18697532,0.00017209,2]
[403912312,1769665832759,-386.0,0.00017244,2]
[403912314,1769665832770,-233.51889341,0.00017264,2]
[403912316,1769665832780,-386.0,0.00017294,2]
[403912318,1769665832790,-242.15909246,0.00017319,2]
[403912320,1769665832800,-386.0,0.00017372,2]
[403912322,1769665832810,-1255.66,0.00017373,2]
[403912325,1769665832821,-251.11897888,0.00017374,2]
[403912327,1769665832831,-195.0,0.0001738,2]
[403912329,1769665832841,-386.0,0.00017403,2]
[403912331,1769665832850,-386.0,0.00017405,2]
[403912333,1769665832861,-260.4103811,0.00017429,2]
[403912335,1769665832871,-270.0455652,0.00017484,2]
[403912337,1769665832882,-386.0,0.00017507,2]
[403912338,1769665832892,-386.0,0.0001751,2]
[403912340,1769665832902,-280.03725112,0.00017539,2]
[403912342,1769665832912,-386.0,0.00017566,2]
[403912344,1769665832922,-290.39862941,0.00017594,2]
[403912346,1769665832935,-200.0,0.000176,6]
[403912348,1769665832945,-924.3245402,0.0001764,2]
[403912350,1769665832956,-386.0,0.00017641,2]
[403912352,1769665832966,-386.0,0.00017647,2]
[403912354,1769665832977,-1255.66,0.00017647,2]
[403912355,1769665832986,-181.08010149,0.00017647,2]
[403912356,1769665832996,-885.86649465,0.00017647,2]
[403912357,1769665833007,-2423.7,0.00017648,2]
[403912358,1769665833017,-301.1433787,0.00017649,2]
[403912359,1769665833027,-386.0,0.0001767,2]
[403912360,1769665833036,-386.0,0.00017671,2]
[403912361,1769665833046,-400.76727744,0.00017678,2]
[403912362,1769665833056,-250.0,0.00017694,2]
[403912363,1769665833067,-500.0,0.00017698,2]
[403912364,1769665833077,-400.0,0.000177,6]
[403912365,1769665833087,-322.44448477,0.00017737,2]
[403912366,1769665833098,-500.0,0.00017753,2]
[403912367,1769665833108,-1000.0,0.00017799,2]
[403912368,1769665833121,-600.0,0.000178,6]
[403912369,1769665833135,-500.0,0.00017808,2]
[403912370,1769665833146,-150.0,0.00017808,2]
[403912371,1769665833157,-150.0,0.00017819,2]
[403912372,1769665833167,-1159.77538,0.0001782,2]
[403912373,1769665833178,-1159.77539,0.0001782,2]
[403912374,1769665833188,-386.0,0.00017851,2]
[403912375,1769665833199,-200.0,0.00017856,2]
[403912376,1769665833208,-500.0,0.00017862,2]
[403912377,1769665833219,-150.0,0.00017863,2]
[403912378,1769665833229,-1468.919,0.00017873,2]
[403912379,1769665833240,-212.936,0.00017873,2]
[403912380,1769665833250,-217.0,0.0001788,2]
[403912381,1769665833260,-386.0,0.00017883,2]
[403912382,1769665833270,-386.0,0.00017896,2]
[403912383,1769665833280,-475.46148833,0.00017897,2]
[403912384,1769665833290,-1254.75039023,0.00017897,2]
[403912385,1769665833299,-500.0,0.00017899,2]
[403912386,1769665833309,-215.57339081,0.00017899,2]
[403912387,1769665833319,-536.94514641,0.00017899,2]
[403912388,1769665833330,-500.0,0.00017899,2]
[403912389,1769665833344,-500.0,0.00017899,2]
[403912390,1769665833354,-500.0,0.00017899,2]
[403912391,1769665833363,-1140.6022,0.000179,2]
[403912392,1769665833373,-297.17546142,0.000179,2]
[403912393,1769665833383,-333.08760516,0.000179,2]
[403912394,1769665833394,-4326.77389375,0.000179,2]
[403912395,1769665833900,-800.0,0.000179,6]
[403912396,1769665833930,-325.98592236,0.000179,2]
[403912397,1769665833951,-380.73357795,0.000179,2]
[403912398,1769665833962,-386.0,0.00017914,2]
[403912399,1769665833972,-386.0,0.00017915,2]
[403912400,1769665833983,-186.41317807,0.00017917,2]
[403912401,1769665833993,-500.0,0.00017917,2]
[403912402,1769665834003,-150.0,0.00017918,2]
[403912403,1769665834013,-1255.66,0.00017921,2]
[403912404,1769665834023,-386.0,0.00017941,2]
[403912405,1769665834033,-500.0,0.00017972,2]
[403912406,1769665834043,-386.0,0.00017972,2]
[403912407,1769665834053,-158.14119219,0.00017972,2]
[403912408,1769665834063,-150.0,0.00017973,2]
[403912409,1769665834073,-150.0,0.00017973,2]
[403912410,1769665834083,-386.0,0.00017977,2]
[403912411,1769665834093,-166.96,0.0001799,2]
[403912412,1769665834102,-151.94,0.0001799,2]
[403912413,1769665834114,-151.94,0.0001799,2]
[403912414,1769665834124,-151.94,0.0001799,2]
[403912415,1769665834133,-151.94,0.0001799,2]
[403912416,1769665834144,-151.94,0.0001799,2]
[403912417,1769665834155,-500.0,0.00017995,2]
[403912418,1769665834164,-500.0,0.00017995,2]
[403912419,1769665834174,-500.0,0.00017995,2]
[403912420,1769665834185,-500.0,0.00017995,2]
[403912421,1769665834195,-500.0,0.00017995,2]
[403912422,1769665834204,-500.0,0.00017998,2]
[403912423,1769665834214,-500.0,0.00017998,2]
[403912424,1769665834223,-363.74947603,0.00017998,2]
[403912425,1769665834233,-500.0,0.00017998,2]
[403912426,1769665834242,-500.0,0.00017998,2]
[403912427,1769665834252,-500.0,0.00017998,3]
[403912428,1769665834262,-500.0,0.00017998,4]
[403912429,1769665834272,-500.0,0.00017999,2]
[403912430,1769665834282,-360.07461884,0.00017999,2]
[403912431,1769665834291,-500.0,0.00017999,2]
[403912432,1769665834301,-500.0,0.00017999,2]
[403912433,1769665834311,-500.0,0.00017999,2]
[403912434,1769665834320,-500.0,0.00017999,2]
[403912435,1769665834330,-500.0,0.00017999,2]
[403912436,1769665834340,-500.0,0.00017999,2]
[403912437,1769665834349,-500.0,0.00017999,2]
[403912438,1769665834359,-500.0,0.00017999,2]
[403912439,1769665834368,-500.0,0.00017999,2]
[403912440,1769665834380,-500.0,0.00017999,2]
[403912441,1769665834391,-250.57360712,0.00017999,2]
[403912442,1769665834401,-500.0,0.00017999,2]
[403912443,1769665834410,-505.31031909,0.00017999,2]
[403912444,1769665834420,-500.0,0.00017999,2]
[403912445,1769665834429,-500.0,0.00017999,2]
[403912446,1769665834438,-500.0,0.00017999,2]
[403912447,1769665834448,-598.00979136,0.00017999,2]
[403912448,1769665834458,-500.0,0.00017999,5]
[403912449,1769665834467,-517.93611071,0.00017999,2]
[403912450,1769665834482,-500.0,0.00017999,2]
[403912451,1769665834492,-500.0,0.00017999,2]
[403912452,1769665834501,-577.13765043,0.00017999,2]
[403912453,1769665834511,-500.0,0.00017999,2]
[403912454,1769665834521,-500.0,0.00017999,2]
[403912455,1769665834531,-174.44504984,0.00017999,2]
[403912456,1769665834541,-500.0,0.00017999,2]
[403912457,1769665834552,-500.0,0.00017999,2]
[403912458,1769665834563,-500.0,0.00017999,2]
[403912459,1769665834573,-285.29645974,0.00017999,2]
[403912460,1769665834583,-500.0,0.00017999,2]
[403912461,1769665834593,-568.06065214,0.00017999,2]
[403912462,1769665834603,-500.0,0.00017999,2]
[403912463,1769665834613,-500.0,0.00017999,2]
[403912464,1769665834624,-500.0,0.00017999,2]
[403912465,1769665834635,-500.0,0.00017999,2]
[403912466,1769665834645,-500.0,0.00017999,2]
[403912467,1769665834656,-500.0,0.00017999,2]
[403912468,1769665834665,-500.0,0.00017999,2]
[403912469,1769665834675,-500.0,0.00017999,2]
[403912470,1769665834685,-500.0,0.00017999,2]
[403912471,1769665834695,-500.0,0.00017999,2]
[403912472,1769665834704,-500.0,0.00017999,2]
[403912473,1769665834714,-500.0,0.00017999,2]
[403912474,1769665834724,-500.0,0.00017999,2]
[403912475,1769665834734,-217.01883167,0.00017999,2]
[403912476,1769665834749,-282.98116833,0.00017999,2]
[403912477,1769665834759,-500.0,0.00017999,2]
[403912478,1769665834769,-200.37639098,0.00017999,2]
[403912479,1769665834779,-500.0,0.00017999,2]
[403912480,1769665834789,-4997.0,0.00018,2]
[403912481,1769665834800,-2486.28105198,0.00018,2]
[403912482,1769665834838,-341.348914,0.00018,2]
[403912483,1769665834855,-22760.62031368,0.00018,2]
[403912484,1769665834884,-3041.31296243,0.00018,2]
[403912485,1769665834896,-2413.61553984,0.00018,2]
[403912486,1769665834930,-289.14843026,0.00018,2]
[403912487,1769665838285,-165.39,0.0001799,2]
[403912488,1769665838295,-165.39,0.0001799,2]
[403912489,1769665838306,-404.44999291,0.00018,2]
[403912490,1769665838345,-111218.50251934,0.00018,2]
[403912491,1769665838355,-151.5011,0.00018,2]
[403912492,1769665838364,-59240.77485362,0.00018,2]
[403912493,1769665838373,-1041848.00622103,0.00018,2]
[403912494,1769665838400,-13125.58946,0.00018,2]
[403912495,1769665838459,-1906.50113006,0.00018,2]
[403912498,1769665838920,-1066.94588466,0.00018,2]
[403912499,1769665838944,-493.77988106,0.00018,2]
[403912501,1769665840636,-426.76883322,0.00018,2]
[403912508,1769665843442,-94.15720476,0.00018,2]
[403912509,1769665843737,-324.97946918,0.00018,2]
[403912527,1769665846336,-1779.5,0.00018,2]
[403912529,1769665846347,-1077.09581276,0.00018,2]
[403912531,1769665846393,-600.86929527,0.00018,2]
[403912532,1769665846450,-984.14314611,0.00018,2]
[403912533,1769665846508,-1360.53122422,0.00018,2]
[403912534,1769665846519,-573.95549409,0.00018,2]
[403912535,1769665846535,-2600.42447532,0.00018,2]
[403912542,1769665898158,384.80371675,0.00021,30]
[403912563,1769666842087,-151.0,0.0001593,2]
[403912564,1769666842108,-151.0,0.00015932,2]
[403912565,1769666842128,-151.0,0.00015932,2]
[403912566,1769666842148,-306.04111667,0.00016157,2]
[403912570,1769666949082,-133.78596873,0.00016157,2]
[403912574,1769667031403,-151.0,0.00016229,2]
[403912575,1769667031413,-151.0,0.00016232,2]
[403912576,1769667031422,-36.0,0.00016236,2]
[403912577,1769667031437,-115.0,0.00016236,2]
[403912578,1769667031447,-166.75741691,0.00016373,2]
[403912579,1769667031476,-333.24258309,0.00016373,2]
[403912580,1769667031487,-460.20817435,0.00016373,2]
[403912581,1769667031497,-175.29087968,0.00016373,2]
[403912582,1769667031510,-144.11722198,0.00016373,2]
[403912583,1769667031522,-407.76648186,0.00016373,2]
[403912584,1769667031531,-263.67248291,0.00016378,2]
[403912585,1769667031541,-183.44381325,0.00016551,2]
[403912586,1769667031552,-72.90618675,0.00016551,2]
[403912587,1769667031562,-1000.0,0.00016588,2]
[403912588,1769667031573,-256.35,0.00016604,2]
[403912589,1769667031583,-256.35,0.00016658,2]
[403912590,1769667031592,-256.35,0.00016711,2]
[403912591,1769667031602,-587.0,0.00016763,2]
[403912592,1769667031612,-256.35,0.00016764,2]
[403912593,1769667031622,-539.49,0.00016764,2]
[403912594,1769667031632,-256.35,0.00016818,2]
[403912595,1769667031642,-6878.26,0.0001687,2]
[403912596,1769667031651,-256.35,0.00016871,2]
[403912597,1769667031660,-654.2182853,0.00016902,2]
[403912598,1769667031670,-256.35,0.00016924,2]
[403912599,1769667031679,-302.53,0.00016941,2]
[403912600,1769667031688,-256.35,0.00016978,2]
[403912601,1769667031698,-250.0,0.00017,2]
[403912602,1769667031711,-256.35,0.00017031,2]
[403912603,1769667031723,-160.55,0.00017035,2]
[403912604,1769667031742,-987.1,0.00017043,2]
[403912605,1769667031762,-256.35,0.00017084,2]
[403912606,1769667031784,-578.20924308,0.00017099,2]
[403912607,1769667031805,-721.12765535,0.00017099,2]
[403912608,1769667031826,-500.0,0.00017099,2]
[403912610,1769667031845,-500.0,0.00017099,2]
[403912612,1769667031856,-337.47289019,0.00017099,2]
[403912614,1769667031866,-500.0,0.00017099,2]
[403912616,1769667031877,-500.0,0.00017099,2]
[403912617,1769667031889,-854.2589148,0.00017099,2]
[403912618,1769667031901,-500.0,0.00017099,2]
[403912619,1769667031911,-500.0,0.00017099,2]
[403912620,1769667031921,-500.0,0.00017099,2]
[403912621,1769667031933,-500.0,0.00017099,2]
[403912622,1769667031942,-500.0,0.00017099,2]
[403912623,1769667031954,-500.0,0.00017099,2]
[403912624,1769667031965,-500.0,0.00017099,2]
[403912625,1769667031977,-500.0,0.00017099,2]
[403912626,1769667031988,-500.0,0.00017099,2]
[403912627,1769667031998,-500.0,0.00017099,2]
[403912628,1769667032009,-500.0,0.00017099,2]
[403912629,1769667032023,-500.0,0.00017099,2]
[403912630,1769667032034,-500.0,0.00017099,2]
[403912631,1769667032045,-500.0,0.00017099,2]
[403912632,1769667032056,-500.0,0.00017099,2]
[403912633,1769667032065,-500.0,0.00017099,2]
[403912634,1769667032074,-500.0,0.00017099,2]
[403912635,1769667032084,-500.0,0.00017099,2]
[403912636,1769667032095,-500.0,0.00017099,2]
[403912637,1769667032106,-250.0,0.00017099,2]
[403912638,1769667032116,-500.0,0.00017099,2]
[403912639,1769667032126,-201.93286101,0.00017099,2]
[403912640,1769667032135,-500.0,0.00017099,2]
[403912641,1769667032145,-500.0,0.00017099,2]
[403912642,1769667032155,-250.0,0.00017099,2]
[403912643,1769667032164,-500.0,0.00017099,2]
[403912644,1769667032175,-500.0,0.00017099,2]
[403912645,1769667032184,-500.0,0.00017099,2]
[403912646,1769667032194,-250.0,0.00017099,2]
[403912647,1769667032203,-500.0,0.00017099,2]
[403912648,1769667032213,-500.0,0.00017099,2]
[403912649,1769667032222,-209.40437684,0.00017099,2]
[403912650,1769667032232,-250.0,0.00017099,2]
[403912651,1769667032241,-500.0,0.00017099,2]
[403912652,1769667032251,-500.0,0.00017099,2]
[403912653,1769667032261,-322.6107,0.00017099,2]
[403912654,1769667032270,-250.0,0.00017099,2]
[403912655,1769667032279,-500.0,0.00017099,2]
[403912656,1769667032289,-500.0,0.00017099,2]
[403912657,1769667032298,-250.0,0.00017099,2]
[403912658,1769667032307,-250.0,0.00017099,2]
[403912659,1769667032317,-371.86668183,0.00017099,2]
[403912660,1769667032327,-174.61919141,0.00017099,2]
[403912661,1769667032336,-250.0,0.00017099,2]
[403912662,1769667032345,-250.0,0.00017099,2]
[403912663,1769667032355,-250.0,0.00017099,2]
[403912664,1769667032364,-250.0,0.00017099,2]
[403912665,1769667032374,-250.0,0.00017099,2]
[403912666,1769667032383,-250.0,0.00017099,2]
[403912667,1769667032393,-250.0,0.00017099,2]
[403912668,1769667032403,-250.0,0.00017099,2]
[403912669,1769667032412,-250.0,0.00017099,2]
[403912670,1769667032422,-250.0,0.00017099,2]
[403912671,1769667032435,-250.0,0.00017099,2]
[403912672,1769667032444,-256.35,0.00017138,2]
[403912673,1769667032453,-217.15233878,0.00017154,2]
[403912674,1769667032463,-311.06,0.00017154,2]
[403912675,1769667032473,-305.15,0.00017169,2]
[403912676,1769667032482,-256.35,0.00017191,2]
[403912677,1769667032491,-225.18697532,0.00017209,2]
[403912678,1769667032503,-256.35,0.00017244,2]
[403912679,1769667032512,-233.51889341,0.00017264,2]
[403912680,1769667032521,-256.35,0.00017298,2]
[403912681,1769667032531,-242.15909246,0.00017319,2]
[403912682,1769667032540,-256.35,0.00017351,2]
[403912683,1769667032549,-251.11897888,0.00017374,2]
[403912684,1769667032558,-211.0,0.00017403,2]
[403912685,1769667032568,-256.35,0.00017404,2]
[403912686,1769667032578,-260.4103811,0.00017429,2]
[403912687,1769667032587,-256.35,0.00017458,2]
[403912688,1769667032597,-270.0455652,0.00017484,2]
[403912689,1769667032606,-256.35,0.00017511,2]
[403912690,1769667032616,-250.0,0.00017526,2]
[403912691,1769667032625,-195.0,0.00017526,2]
[403912692,1769667032635,-280.03725112,0.00017539,2]
[403912693,1769667032644,-256.35,0.00017565,2]
[403912694,1769667032653,-227.6,0.00017583,2]
[403912695,1769667032663,-290.39862941,0.00017594,2]
[403912696,1769667032672,-571.57197851,0.0001764,2]
[403912697,1769667032682,-885.86649465,0.00017647,2]
[403912698,1769667032692,-181.08010149,0.00017647,2]
[403912699,1769667032702,-301.1433787,0.00017649,2]
[403912700,1769667032711,-987.1,0.00017682,2]
[403912701,1769667032721,-150.0,0.00017699,2]
[403912702,1769667032730,-152.89474536,0.00017699,2]
[403912703,1769667032739,-150.0,0.00017699,2]
[403912704,1769667032748,-156.67615941,0.00017699,2]
[403912705,1769667032758,-153.13236439,0.00017699,2]
[403912706,1769667032767,-500.0,0.00017699,2]
[403912707,1769667032777,-500.0,0.00017699,2]
[403912708,1769667032786,-150.0,0.00017754,2]
[403912709,1769667032795,-223.16612009,0.00017754,2]
[403912710,1769667032805,-500.0,0.00017754,2]
[403912711,1769667032814,-500.0,0.00017754,2]
[403912712,1769667032824,-194.0,0.00017793,2]
[403912713,1769667032833,-200.0,0.000178,6]
[403912714,1769667032843,-150.0,0.00017808,2]
[403912715,1769667032853,-150.0,0.00017809,2]
[403912716,1769667032863,-500.0,0.00017809,2]
[403912717,1769667032874,-500.0,0.00017809,2]
[403912718,1769667032883,-194.0,0.00017836,2]
[403912719,1769667032893,-200.0,0.00017856,2]
[403912720,1769667032903,-150.0,0.00017863,2]
[403912721,1769667032912,-150.0,0.00017863,2]
[403912722,1769667032922,-500.0,0.00017863,2]
[403912723,1769667032931,-500.0,0.00017863,2]
[403912724,1769667032941,-413.31213691,0.00017873,2]
[403912725,1769667032950,-209.751,0.00017884,2]
[403912726,1769667032960,-1817.177,0.00017884,2]
[403912727,1769667032969,-589.8512,0.000179,2]
[403912728,1769667032980,-266.47008412,0.000179,2]
[403912729,1769667032990,-457.8760652,0.000179,2]
[403912730,1769667033000,-6178.92444601,0.000179,2]
[403912731,1769667033010,-400.0,0.000179,6]
[403912732,1769667033019,-502.56163027,0.000179,2]
[403912733,1769667033030,-6687.2671731,0.000179,2]
[403912734,1769667033039,-900.0,0.00017907,2]
[403912735,1769667033048,-150.0,0.00017918,2]
[403912736,1769667033059,-187.44600729,0.00017918,2]
[403912737,1769667033068,-500.0,0.00017918,2]
[403912738,1769667033078,-500.0,0.00017918,2]
[403912739,1769667033089,-1000.0,0.0001797,2]
[403912740,1769667033099,-1000.0,0.0001797,2]
[403912741,1769667033108,-1000.0,0.0001797,2]
[403912742,1769667033119,-500.0,0.0001797,2]
[403912743,1769667033129,-1586.70157575,0.0001797,2]
[403912744,1769667033139,-500.0,0.0001797,2]
[403912745,1769667033148,-603.88228972,0.0001797,2]
[403912746,1769667033157,-150.0,0.00017972,2]
[403912747,1769667033167,-500.0,0.00017973,2]
[403912748,1769667033176,-500.0,0.00017973,2]
[403912749,1769667033186,-837.11,0.00017989,2]
[403912750,1769667033195,-256.15661694,0.0001799,2]
[403912751,1769667033205,-500.0,0.00017999,2]
[403912752,1769667033214,-500.0,0.00017999,2]
[403912753,1769667033224,-5504.0,0.00018,2]
[403912754,1769667033233,-150.0,0.00018,2]
[403912755,1769667033242,-2575.22130219,0.00018,2]
[403912756,1769667033299,-1348.54573148,0.00018,2]
[403912757,1769667033319,-308.17530323,0.00018,2]
[403912758,1769667033330,-508.0,0.00018,2]
[403912759,1769667033348,-1716.24258309,0.00018,2]
[403912760,1769667037464,-1000.0,0.00017999,2]
[403912761,1769667037476,-2524.94000031,0.00017999,2]
[403912762,1769667037487,-758.91310333,0.00017999,2]
[403912763,1769667037577,-2629.97761171,0.00017999,2]
[403912764,1769667037588,-25160.40364325,0.00017999,2]
[403912765,1769667037597,-1187298.38105074,0.00018,2]
[403912766,1769667037608,-614.38108556,0.00018,2]
[403912767,1769667037618,-7243.67967299,0.00018,2]
[403912768,1769667037629,-18349.80173218,0.00018,2]
[403912769,1769667037663,-1333.86668073,0.00018,2]
[403912770,1769667037677,-903.67362975,0.00018,2]
[403912775,1769667042605,-100723.32999709,0.00018,2]
[403912776,1769667042616,-113928.66947122,0.00018,2]
[403912777,1769667042627,-3271.2104386,0.00018,2]
[403912778,1769667042636,-3194.4647915,0.00018,2]
[403912780,1769667042646,-1900.7478118,0.00018,2]
[403912781,1769667042655,-151.0,0.00018,2]
[403912782,1769667042665,-1217.62803,0.00018,2]
[403912783,1769667042675,-539.0,0.00018,2]
[403912784,1769667042685,-200.0,0.00018,2]
[403912785,1769667042694,-487.0,0.00018,2]
[403912786,1769667042703,-487.0,0.00018,2]
[403912787,1769667042714,-487.0,0.00018,2]
[403912788,1769667042723,-487.0,0.00018,2]
[403912789,1769667042733,-487.0,0.00018,2]
[403912790,1769667042743,-487.0,0.00018,2]
[403912791,1769667042751,-487.0,0.00018,2]
[403912792,1769667042762,-487.0,0.00018,2]
[403912793,1769667042771,-487.0,0.00018,2]
[403912794,1769667042780,-487.0,0.00018,2]
[403912795,1769667042789,-622.08,0.00018,2]
[403912796,1769667042799,-166.66,0.00018022,2]
[403912797,1769667042809,-150.0,0.00018027,2]
[403912798,1769667042818,-500.0,0.00018028,2]
[403912799,1769667042827,-500.0,0.00018028,2]
[403912800,1769667042836,-217.0,0.00018051,2]
[403912801,1769667042846,-166.66,0.00018054,2]
[403912802,1769667042855,-250.0,0.00018082,2]
[403912803,1769667042864,-500.0,0.00018083,2]
[403912804,1769667042873,-388.32277431,0.00018083,2]
[403912805,1769667042887,-1779.43478411,0.000181,2]
[403912806,1769667042896,-150.0,0.000181,2]
[403912807,1769667042905,-150.0,0.000181,2]
[403912808,1769667042915,-311.06,0.00018107,2]
[403912809,1769667042924,-168.0,0.00018126,2]
[403912810,1769667042933,-500.0,0.00018137,2]
[403912811,1769667042942,-500.0,0.00018142,2]
[403912812,1769667042952,-194.0,0.00018191,2]
[403912813,1769667042961,-500.0,0.00018192,2]
[403912814,1769667042970,-918.64355495,0.00018195,2]